[Event "Late Titled Tuesday Blitz February 8 2022"]
[White "Kopczynski, Michal"]
[Black "Mirzoev, Azer"]
[WhiteFideId "1124200"]
[BlackFideId "13400304"]
[WhiteElo "2235"]
[BlackElo "2525"]
[Result "0-1"]
[Round "11"]
[TimeControl "180+1"]
[Date "2022.02.08"]
[WhiteClock "0:00:05"]
[BlackClock "0:00:08"]

1. e4 {[%clk 0:03:00]}  c5 {[%clk 0:02:59]} 2. d4 {[%clk 0:03:01]}  cxd4 {[%clk 0:02:59]} 3. c3 {[%clk 0:03:01]}  d3 {[%clk 0:02:59]} 4. Bxd3 {[%clk 0:03:01]}  Nc6 {[%clk 0:03:00]} 5. f4 {[%clk 0:03:01]}  d6 {[%clk 0:02:59]} 6. Nf3 {[%clk 0:03:02]}  g6 {[%clk 0:03:00]} 7. O-O {[%clk 0:03:03]}  Bg7 {[%clk 0:03:00]} 8. Kh1 {[%clk 0:03:03]}  Nf6 {[%clk 0:02:59]} 9. Qe1 {[%clk 0:03:04]}  O-O {[%clk 0:02:58]} 10. Be3 {[%clk 0:03:03]}  Bg4 {[%clk 0:02:52]} 11. Nbd2 {[%clk 0:03:03]}  Bxf3 {[%clk 0:02:49]} 12. Rxf3 {[%clk 0:03:02]}  Nd7 {[%clk 0:02:48]} 13. Rh3 {[%clk 0:03:01]}  e6 {[%clk 0:02:47]} 14. f5 {[%clk 0:02:56]}  Re8 {[%clk 0:02:43]} 15. fxg6 {[%clk 0:02:52]}  hxg6 {[%clk 0:02:43]} 16. Qg3 {[%clk 0:02:46]}  Nce5 {[%clk 0:02:37]} 17. Bc2 {[%clk 0:02:43]}  b5 {[%clk 0:02:35]} 18. Rf1 {[%clk 0:02:33]}  Bf6 {[%clk 0:02:07]} 19. Bb3 {[%clk 0:02:05]}  a5 {[%clk 0:02:01]} 20. a3 {[%clk 0:02:05]}  b4 {[%clk 0:01:43]} 21. cxb4 {[%clk 0:02:00]}  axb4 {[%clk 0:01:43]} 22. a4 {[%clk 0:02:00]}  Nc5 {[%clk 0:01:42]} 23. Bd1 {[%clk 0:01:24]}  Nxa4 {[%clk 0:01:34]} 24. Nf3 {[%clk 0:01:18]}  Nxb2 {[%clk 0:01:22]} 25. Bg5 {[%clk 0:00:55]}  Nxf3 {[%clk 0:01:04]} 26. Bxf6 {[%clk 0:00:55]}  Qxf6 {[%clk 0:01:03]} 27. Bxf3 {[%clk 0:00:53]}  Nc4 {[%clk 0:00:35]} 28. Be2 {[%clk 0:00:44]}  Ra1 {[%clk 0:00:34]} 29. Qd3 {[%clk 0:00:28]}  Rxf1+ {[%clk 0:00:32]} 30. Bxf1 {[%clk 0:00:29]}  Ne5 {[%clk 0:00:31]} 31. Qb5 {[%clk 0:00:28]}  Ra8 {[%clk 0:00:29]} 32. Kg1 {[%clk 0:00:16]}  Kg7 {[%clk 0:00:28]} 33. Rb3 {[%clk 0:00:10]}  Ra1 {[%clk 0:00:26]} 34. Rxb4 {[%clk 0:00:11]}  Qf4 {[%clk 0:00:21]} 35. Rb1 {[%clk 0:00:10]}  Qe3+ {[%clk 0:00:17]} 36. Kh1 {[%clk 0:00:10]}  Ra2 {[%clk 0:00:15]} 37. Rb2 {[%clk 0:00:09]}  Rxb2 {[%clk 0:00:14]} 38. Qxb2 {[%clk 0:00:10]}  Qxe4 {[%clk 0:00:14]} 39. h3 {[%clk 0:00:09]}  d5 {[%clk 0:00:12]} 40. Kg1 {[%clk 0:00:08]}  Qe3+ {[%clk 0:00:12]} 41. Kh2 {[%clk 0:00:07]}  d4 {[%clk 0:00:11]} 42. Bb5 {[%clk 0:00:04]}  Nd3 {[%clk 0:00:10]} 43. Bxd3 {[%clk 0:00:03]}  Qxd3 {[%clk 0:00:10]} 44. Qb8 {[%clk 0:00:02]}  Qe3 {[%clk 0:00:10]} 45. Kh1 {[%clk 0:00:03]}  e5 {[%clk 0:00:10]} 46. Qd6 {[%clk 0:00:03]}  d3 {[%clk 0:00:10]} 47. h4 {[%clk 0:00:03]}  d2 {[%clk 0:00:10]} 48. Kh2 {[%clk 0:00:03]}  Qf4+ {[%clk 0:00:10]} 49. Kh3 {[%clk 0:00:04]}  Qe3+ {[%clk 0:00:09]} 50. Kh2 {[%clk 0:00:04]}  Qd4 {[%clk 0:00:09]} 51. Qe7 {[%clk 0:00:03]}  d1=Q {[%clk 0:00:09]} 52. h5 {[%clk 0:00:04]}  Qxh5+ {[%clk 0:00:09]} 53. Kg3 {[%clk 0:00:05]}  Qf4# {[%clk 0:00:08]} 0-1


[Site "https://www.chess.com"]

[Event "Late Titled Tuesday Blitz February 8 2022"]
[White "Kosteniuk, Alexandra"]
[Black "Kouskoutis, Georgios-Alexandros"]
[WhiteFideId "4128125"]
[BlackFideId "4234049"]
[WhiteElo "2469"]
[BlackElo "2130"]
[Result "1-0"]
[Round "11"]
[TimeControl "180+1"]
[Date "2022.02.08"]
[WhiteClock "0:01:28"]
[BlackClock "0:00:02"]

1. e4 {[%clk 0:03:00]}  c5 {[%clk 0:02:59]} 2. Nf3 {[%clk 0:03:00]}  e6 {[%clk 0:02:58]} 3. c3 {[%clk 0:02:59]}  Nf6 {[%clk 0:02:57]} 4. e5 {[%clk 0:03:00]}  Nd5 {[%clk 0:02:58]} 5. d4 {[%clk 0:03:00]}  cxd4 {[%clk 0:02:58]} 6. cxd4 {[%clk 0:03:01]}  d6 {[%clk 0:02:58]} 7. Bc4 {[%clk 0:03:01]}  Nb6 {[%clk 0:02:54]} 8. Bd3 {[%clk 0:03:00]}  dxe5 {[%clk 0:02:44]} 9. Nxe5 {[%clk 0:02:57]}  Bb4+ {[%clk 0:01:56]} 10. Nc3 {[%clk 0:02:55]}  Nc6 {[%clk 0:01:50]} 11. Nxc6 {[%clk 0:02:51]}  bxc6 {[%clk 0:01:51]} 12. Qg4 {[%clk 0:02:51]}  Kf8 {[%clk 0:01:23]} 13. Qe4 {[%clk 0:02:24]}  Nd5 {[%clk 0:01:20]} 14. Bd2 {[%clk 0:02:23]}  a5 {[%clk 0:01:05]} 15. O-O {[%clk 0:02:22]}  Ba6 {[%clk 0:01:04]} 16. Bxa6 {[%clk 0:02:20]}  Rxa6 {[%clk 0:01:05]} 17. a3 {[%clk 0:02:19]}  Nxc3 {[%clk 0:00:50]} 18. bxc3 {[%clk 0:02:17]}  Be7 {[%clk 0:00:25]} 19. a4 {[%clk 0:02:12]}  Qd5 {[%clk 0:00:14]} 20. Qd3 {[%clk 0:02:08]}  Ra8 {[%clk 0:00:15]} 21. c4 {[%clk 0:02:07]}  Qd7 {[%clk 0:00:15]} 22. Rfd1 {[%clk 0:02:03]}  Bf6 {[%clk 0:00:13]} 23. Bc3 {[%clk 0:02:01]}  h5 {[%clk 0:00:13]} 24. Qd2 {[%clk 0:02:01]}  Rh6 {[%clk 0:00:11]} 25. Bxa5 {[%clk 0:01:50]}  Qxd4 {[%clk 0:00:08]} 26. Qb4+ {[%clk 0:01:35]}  c5 {[%clk 0:00:04]} 27. Qb7 {[%clk 0:01:35]}  Rxa5 {[%clk 0:00:03]} 28. Rxd4 {[%clk 0:01:32]}  Bxd4 {[%clk 0:00:03]} 29. Qc8+ {[%clk 0:01:29]}  Ke7 {[%clk 0:00:04]} 30. Qc7+ {[%clk 0:01:29]}  Kf6 {[%clk 0:00:04]} 31. Qxa5 {[%clk 0:01:28]}  Bxa1 {[%clk 0:00:04]} 32. Qd8+ {[%clk 0:01:28]}  Kg6 {[%clk 0:00:02]} 33. a5 {[%clk 0:01:28]} 1-0


[Site "https://www.chess.com"]

[Event "Late Titled Tuesday Blitz February 8 2022"]
[White "Lin, Dachey"]
[Black "Janaszak, Dawid"]
[WhiteFideId "2029650"]
[BlackFideId "1119206"]
[WhiteElo "2730"]
[BlackElo "2199"]
[Result "0-1"]
[Round "11"]
[TimeControl "180+1"]
[Date "2022.02.08"]
[WhiteClock "0:01:45"]
[BlackClock "0:02:05"]

1. g4 {[%clk 0:03:00]}  g5 {[%clk 0:02:57]} 2. h4 {[%clk 0:03:01]}  gxh4 {[%clk 0:02:50]} 3. d4 {[%clk 0:03:01]}  d5 {[%clk 0:02:46]} 4. g5 {[%clk 0:02:58]}  Bf5 {[%clk 0:02:40]} 5. Nf3 {[%clk 0:02:55]}  Nc6 {[%clk 0:02:36]} 6. c4 {[%clk 0:02:50]}  e6 {[%clk 0:02:28]} 7. Nc3 {[%clk 0:02:50]}  Nb4 {[%clk 0:02:24]} 8. e4 {[%clk 0:02:31]}  Bxe4 {[%clk 0:02:14]} 9. Nxe4 {[%clk 0:02:06]}  dxe4 {[%clk 0:02:15]} 10. Ne5 {[%clk 0:01:58]}  Qxd4 {[%clk 0:02:08]} 11. Qxd4 {[%clk 0:01:55]}  Nc2+ {[%clk 0:02:07]} 12. Kd2 {[%clk 0:01:55]}  Nxd4 {[%clk 0:02:08]} 13. Rxh4 {[%clk 0:01:51]}  Bg7 {[%clk 0:02:06]} 14. f4 {[%clk 0:01:45]}  Bxe5 {[%clk 0:02:05]} 0-1


[Site "https://www.chess.com"]

[Event "Late Titled Tuesday Blitz February 8 2022"]
[White "Maksimovic, Bojan"]
[Black "Kosakowski, Jakub"]
[WhiteFideId "14408120"]
[BlackFideId "1185080"]
[WhiteElo "2450"]
[BlackElo "2476"]
[Result "0-1"]
[Round "11"]
[TimeControl "180+1"]
[Date "2022.02.08"]
[WhiteClock "0:00:22"]
[BlackClock "0:00:14"]

1. Nf3 {[%clk 0:03:00]}  e6 {[%clk 0:02:53]} 2. b3 {[%clk 0:02:59]}  b6 {[%clk 0:02:52]} 3. Bb2 {[%clk 0:02:59]}  Bb7 {[%clk 0:02:53]} 4. g3 {[%clk 0:02:58]}  Nf6 {[%clk 0:02:51]} 5. Bg2 {[%clk 0:02:59]}  c5 {[%clk 0:02:51]} 6. O-O {[%clk 0:02:58]}  Be7 {[%clk 0:02:52]} 7. c4 {[%clk 0:02:57]}  O-O {[%clk 0:02:51]} 8. d4 {[%clk 0:02:58]}  cxd4 {[%clk 0:02:52]} 9. Nxd4 {[%clk 0:02:58]}  Bxg2 {[%clk 0:02:51]} 10. Kxg2 {[%clk 0:02:58]}  d5 {[%clk 0:02:50]} 11. Nd2 {[%clk 0:02:57]}  Qc8 {[%clk 0:02:46]} 12. cxd5 {[%clk 0:02:50]}  Nxd5 {[%clk 0:02:45]} 13. Rc1 {[%clk 0:02:50]}  Qb7 {[%clk 0:02:46]} 14. Kg1 {[%clk 0:02:47]}  Nd7 {[%clk 0:02:41]} 15. Nc4 {[%clk 0:02:37]}  Rac8 {[%clk 0:02:39]} 16. e3 {[%clk 0:02:32]}  Rfd8 {[%clk 0:02:30]} 17. Qe2 {[%clk 0:02:32]}  N7f6 {[%clk 0:02:17]} 18. Ne5 {[%clk 0:02:26]}  Bc5 {[%clk 0:02:16]} 19. a3 {[%clk 0:02:19]}  Ne7 {[%clk 0:02:09]} 20. b4 {[%clk 0:02:12]}  Bd6 {[%clk 0:02:07]} 21. Ndf3 {[%clk 0:01:54]}  h6 {[%clk 0:02:01]} 22. Rfd1 {[%clk 0:01:52]}  Rxc1 {[%clk 0:01:56]} 23. Rxc1 {[%clk 0:01:51]}  Rc8 {[%clk 0:01:50]} 24. Rd1 {[%clk 0:01:51]}  Bb8 {[%clk 0:01:47]} 25. h3 {[%clk 0:01:24]}  Qe4 {[%clk 0:01:41]} 26. Qd3 {[%clk 0:00:44]}  Ned5 {[%clk 0:01:32]} 27. Qxe4 {[%clk 0:00:31]}  Nxe4 {[%clk 0:01:32]} 28. Nd3 {[%clk 0:00:31]}  Rc2 {[%clk 0:01:11]} 29. Rc1 {[%clk 0:00:27]}  Rxc1+ {[%clk 0:00:49]} 30. Bxc1 {[%clk 0:00:28]}  Ndc3 {[%clk 0:00:34]} 31. Kf1 {[%clk 0:00:26]}  Kf8 {[%clk 0:00:32]} 32. Bb2 {[%clk 0:00:22]}  Na4 {[%clk 0:00:29]} 33. Bc1 {[%clk 0:00:19]}  b5 {[%clk 0:00:24]} 34. Nd4 {[%clk 0:00:18]}  a6 {[%clk 0:00:25]} 35. Nb3 {[%clk 0:00:18]}  Bd6 {[%clk 0:00:24]} 36. g4 {[%clk 0:00:18]}  Ke7 {[%clk 0:00:24]} 37. f3 {[%clk 0:00:17]}  Nec3 {[%clk 0:00:23]} 38. Ke1 {[%clk 0:00:16]}  Nd5 {[%clk 0:00:22]} 39. Ke2 {[%clk 0:00:15]}  Ndb6 {[%clk 0:00:21]} 40. Na5 {[%clk 0:00:13]}  e5 {[%clk 0:00:16]} 41. Nc6+ {[%clk 0:00:09]}  Ke6 {[%clk 0:00:16]} 42. Na5 {[%clk 0:00:10]}  g6 {[%clk 0:00:12]} 43. e4 {[%clk 0:00:10]}  h5 {[%clk 0:00:12]} 44. gxh5 {[%clk 0:00:09]}  gxh5 {[%clk 0:00:13]} 45. Be3 {[%clk 0:00:06]}  Nc4 {[%clk 0:00:11]} 46. Nxc4 {[%clk 0:00:06]}  bxc4 {[%clk 0:00:12]} 47. Ne1 {[%clk 0:00:07]}  f5 {[%clk 0:00:12]} 48. Nc2 {[%clk 0:00:07]}  fxe4 {[%clk 0:00:09]} 49. fxe4 {[%clk 0:00:08]}  Nc3+ {[%clk 0:00:10]} 50. Kf3 {[%clk 0:00:08]}  Be7 {[%clk 0:00:08]} 51. Bd2 {[%clk 0:00:08]}  Nb5 {[%clk 0:00:08]} 52. Be3 {[%clk 0:00:05]}  Bf6 {[%clk 0:00:07]} 53. a4 {[%clk 0:00:06]}  Nd4+ {[%clk 0:00:08]} 54. Bxd4 {[%clk 0:00:03]}  exd4 {[%clk 0:00:09]} 55. Kf4 {[%clk 0:00:03]}  d3 {[%clk 0:00:09]} 56. Ne3 {[%clk 0:00:03]}  c3 {[%clk 0:00:09]} 57. e5 {[%clk 0:00:03]}  Bxe5+ {[%clk 0:00:09]} 58. Ke4 {[%clk 0:00:02]}  c2 {[%clk 0:00:09]} 59. Kxd3 {[%clk 0:00:02]}  c1=Q {[%clk 0:00:10]} 60. Nc2 {[%clk 0:00:03]}  Qd1+ {[%clk 0:00:10]} 61. Ke4 {[%clk 0:00:03]}  Qxc2+ {[%clk 0:00:10]} 62. Kf3 {[%clk 0:00:04]}  Qxa4 {[%clk 0:00:11]} 63. Ke4 {[%clk 0:00:05]}  Qxb4+ {[%clk 0:00:11]} 64. Ke3 {[%clk 0:00:06]}  a5 {[%clk 0:00:11]} 65. Kd3 {[%clk 0:00:06]}  h4 {[%clk 0:00:12]} 66. Ke3 {[%clk 0:00:07]}  a4 {[%clk 0:00:12]} 67. Kd3 {[%clk 0:00:08]}  a3 {[%clk 0:00:13]} 68. Ke3 {[%clk 0:00:08]}  a2 {[%clk 0:00:13]} 69. Kd3 {[%clk 0:00:09]}  a1=R {[%clk 0:00:13]} 70. Kc2 {[%clk 0:00:10]}  Ra8 {[%clk 0:00:13]} 71. Kd3 {[%clk 0:00:11]}  Qe1 {[%clk 0:00:13]} 72. Kc4 {[%clk 0:00:11]}  Qg3 {[%clk 0:00:13]} 73. Kb5 {[%clk 0:00:12]}  Qxh3 {[%clk 0:00:14]} 74. Kc6 {[%clk 0:00:13]}  Qf3+ {[%clk 0:00:14]} 75. Kb5 {[%clk 0:00:13]}  Qb7+ {[%clk 0:00:14]} 76. Kc4 {[%clk 0:00:14]}  h3 {[%clk 0:00:14]} 77. Kd3 {[%clk 0:00:15]}  h2 {[%clk 0:00:15]} 78. Ke2 {[%clk 0:00:16]}  h1=R {[%clk 0:00:14]} 79. Kf2 {[%clk 0:00:17]}  Rhh8 {[%clk 0:00:15]} 80. Ke3 {[%clk 0:00:18]}  Bg7 {[%clk 0:00:15]} 81. Kd3 {[%clk 0:00:19]}  Bf8 {[%clk 0:00:15]} 82. Ke3 {[%clk 0:00:19]}  Kf7 {[%clk 0:00:16]} 83. Kd3 {[%clk 0:00:20]}  Ke8 {[%clk 0:00:17]} 84. Ke3 {[%clk 0:00:21]}  Qd7 {[%clk 0:00:17]} 85. Ke2 {[%clk 0:00:21]}  Qd8 {[%clk 0:00:18]} 86. Kf2 {[%clk 0:00:22]}  Qd3 {[%clk 0:00:13]} 87. Kg2 {[%clk 0:00:22]}  Ra2+ {[%clk 0:00:13]} 88. Kg1 {[%clk 0:00:22]}  Bc5# {[%clk 0:00:14]} 0-1


[Site "https://www.chess.com"]

[Event "Late Titled Tuesday Blitz February 8 2022"]
[White "Michelakos, Panagiotis"]
[Black "Timofeev, Artyom"]
[WhiteFideId "4216067"]
[BlackFideId "4140419"]
[WhiteElo "2140"]
[BlackElo "2583"]
[Result "0-1"]
[Round "11"]
[TimeControl "180+1"]
[Date "2022.02.08"]
[WhiteClock "0:01:01"]
[BlackClock "0:01:40"]

1. d4 {[%clk 0:03:00]}  d5 {[%clk 0:02:59]} 2. Bf4 {[%clk 0:02:57]}  Bf5 {[%clk 0:02:54]} 3. e3 {[%clk 0:02:57]}  e6 {[%clk 0:02:54]} 4. Nd2 {[%clk 0:02:52]}  Nf6 {[%clk 0:02:50]} 5. Ngf3 {[%clk 0:02:51]}  Bd6 {[%clk 0:02:48]} 6. Ne5 {[%clk 0:02:51]}  O-O {[%clk 0:02:47]} 7. Bd3 {[%clk 0:02:47]}  Nbd7 {[%clk 0:02:43]} 8. Ndf3 {[%clk 0:02:35]}  Ne4 {[%clk 0:02:39]} 9. O-O {[%clk 0:02:30]}  h6 {[%clk 0:02:28]} 10. c4 {[%clk 0:02:27]}  dxc4 {[%clk 0:02:21]} 11. Bxc4 {[%clk 0:02:18]}  Qe7 {[%clk 0:02:17]} 12. Nxd7 {[%clk 0:02:04]}  Qxd7 {[%clk 0:02:17]} 13. Ne5 {[%clk 0:02:04]}  Qe7 {[%clk 0:02:15]} 14. f3 {[%clk 0:01:56]}  Nf6 {[%clk 0:01:49]} 15. e4 {[%clk 0:01:51]}  Bh7 {[%clk 0:01:49]} 16. Qb3 {[%clk 0:01:14]}  c5 {[%clk 0:01:41]} 17. dxc5 {[%clk 0:01:01]}  Bxe5 {[%clk 0:01:40]} 0-1


[Site "https://www.chess.com"]

[Event "Late Titled Tuesday Blitz February 8 2022"]
[White "Mogranzini, Roberto"]
[Black "Nikologorsky, Matfei"]
[WhiteFideId "810894"]
[BlackFideId "24102474"]
[WhiteElo "2469"]
[BlackElo "2231"]
[Result "0-1"]
[Round "11"]
[TimeControl "180+1"]
[Date "2022.02.09"]
[WhiteClock "0:00:09"]
[BlackClock "0:00:42"]

1. e4 {[%clk 0:03:00]}  c5 {[%clk 0:02:59]} 2. Nf3 {[%clk 0:03:00]}  e6 {[%clk 0:02:59]} 3. g3 {[%clk 0:03:00]}  Nf6 {[%clk 0:02:53]} 4. Qe2 {[%clk 0:02:59]}  d6 {[%clk 0:02:47]} 5. Bg2 {[%clk 0:02:59]}  Be7 {[%clk 0:02:46]} 6. O-O {[%clk 0:02:59]}  O-O {[%clk 0:02:46]} 7. Rd1 {[%clk 0:02:59]}  e5 {[%clk 0:02:44]} 8. c3 {[%clk 0:02:55]}  Bg4 {[%clk 0:02:41]} 9. h3 {[%clk 0:02:55]}  Bxf3 {[%clk 0:02:40]} 10. Qxf3 {[%clk 0:02:53]}  Nc6 {[%clk 0:02:40]} 11. d3 {[%clk 0:02:53]}  b5 {[%clk 0:02:35]} 12. Nd2 {[%clk 0:02:52]}  b4 {[%clk 0:02:35]} 13. Nc4 {[%clk 0:02:52]}  a5 {[%clk 0:02:30]} 14. Qe2 {[%clk 0:02:22]}  a4 {[%clk 0:02:28]} 15. a3 {[%clk 0:02:19]}  bxc3 {[%clk 0:02:04]} 16. bxc3 {[%clk 0:02:20]}  Nd7 {[%clk 0:02:04]} 17. Ne3 {[%clk 0:02:12]}  Re8 {[%clk 0:01:55]} 18. Nd5 {[%clk 0:02:09]}  Bf8 {[%clk 0:01:56]} 19. h4 {[%clk 0:02:05]}  Nb6 {[%clk 0:01:53]} 20. Qa2 {[%clk 0:02:04]}  Nxd5 {[%clk 0:01:48]} 21. Qxd5 {[%clk 0:02:03]}  Na5 {[%clk 0:01:42]} 22. f4 {[%clk 0:01:59]}  Rb8 {[%clk 0:01:38]} 23. Rf1 {[%clk 0:01:45]}  Qc7 {[%clk 0:01:30]} 24. Be3 {[%clk 0:01:33]}  c4 {[%clk 0:01:26]} 25. d4 {[%clk 0:01:24]}  exd4 {[%clk 0:01:14]} 26. Bxd4 {[%clk 0:01:18]}  Nb3 {[%clk 0:01:08]} 27. Rad1 {[%clk 0:01:16]}  Nxd4 {[%clk 0:01:04]} 28. Rxd4 {[%clk 0:01:17]}  Rb3 {[%clk 0:01:04]} 29. Rxc4 {[%clk 0:01:16]}  Qb6+ {[%clk 0:01:04]} 30. Kh2 {[%clk 0:01:13]}  Rxa3 {[%clk 0:01:02]} 31. Rc6 {[%clk 0:00:48]}  Qb7 {[%clk 0:01:02]} 32. Qc4 {[%clk 0:00:47]}  Qb3 {[%clk 0:00:55]} 33. Qa6 {[%clk 0:00:39]}  Ra2 {[%clk 0:00:52]} 34. Rg1 {[%clk 0:00:36]}  Qc2 {[%clk 0:00:49]} 35. Rc7 {[%clk 0:00:34]}  Qxe4 {[%clk 0:00:47]} 36. Qa7 {[%clk 0:00:30]}  Qf5 {[%clk 0:00:45]} 37. Qd4 {[%clk 0:00:15]}  h6 {[%clk 0:00:44]} 38. Kh1 {[%clk 0:00:09]}  Ree2 {[%clk 0:00:42]} 0-1


[Site "https://www.chess.com"]

[Event "Late Titled Tuesday Blitz February 8 2022"]
[White "Morris-Suzuki, Sophie"]
[Black "Vusatiuk, Vladimir"]
[WhiteFideId "30922615"]
[BlackFideId "14118610"]
[WhiteElo "2445"]
[BlackElo "2157"]
[Result "1-0"]
[Round "11"]
[TimeControl "180+1"]
[Date "2022.02.09"]
[WhiteClock "0:00:48"]
[BlackClock "0:00:02"]

1. d4 {[%clk 0:03:00]}  Nf6 {[%clk 0:02:52]} 2. c4 {[%clk 0:03:01]}  d5 {[%clk 0:02:47]} 3. cxd5 {[%clk 0:03:00]}  c6 {[%clk 0:02:48]} 4. dxc6 {[%clk 0:02:59]}  Nxc6 {[%clk 0:02:49]} 5. Nf3 {[%clk 0:02:57]}  e5 {[%clk 0:02:30]} 6. e3 {[%clk 0:02:48]}  Bg4 {[%clk 0:02:25]} 7. Bb5 {[%clk 0:02:43]}  Qa5+ {[%clk 0:01:56]} 8. Nc3 {[%clk 0:02:43]}  Bb4 {[%clk 0:01:50]} 9. Bd2 {[%clk 0:02:35]}  e4 {[%clk 0:01:38]} 10. h3 {[%clk 0:02:29]}  Bxc3 {[%clk 0:01:12]} 11. Bxc6+ {[%clk 0:02:28]}  bxc6 {[%clk 0:01:13]} 12. Bxc3 {[%clk 0:02:28]}  Qh5 {[%clk 0:01:14]} 13. Qa4 {[%clk 0:02:08]}  O-O {[%clk 0:01:00]} 14. Ne5 {[%clk 0:02:05]}  c5 {[%clk 0:00:46]} 15. Nxg4 {[%clk 0:01:56]}  Nxg4 {[%clk 0:00:46]} 16. O-O {[%clk 0:01:56]}  Nh6 {[%clk 0:00:35]} 17. dxc5 {[%clk 0:01:54]}  Rfe8 {[%clk 0:00:25]} 18. Qc4 {[%clk 0:01:32]}  Re6 {[%clk 0:00:16]} 19. Rad1 {[%clk 0:01:19]}  Nf5 {[%clk 0:00:16]} 20. Rd5 {[%clk 0:01:08]}  Rae8 {[%clk 0:00:14]} 21. Rfd1 {[%clk 0:00:57]}  Rg6 {[%clk 0:00:14]} 22. Qxe4 {[%clk 0:00:52]}  Rge6 {[%clk 0:00:03]} 23. Qxf5 {[%clk 0:00:48]}  Qxd1+ {[%clk 0:00:02]} 24. Rxd1 {[%clk 0:00:48]} 1-0


[Site "https://www.chess.com"]

[Event "Late Titled Tuesday Blitz February 8 2022"]
[White "Nogerbek, Kazybek"]
[Black "Howell, David W L"]
[WhiteFideId "13710427"]
[BlackFideId "410608"]
[WhiteElo "2478"]
[BlackElo "2559"]
[Result "1/2-1/2"]
[Round "11"]
[TimeControl "180+1"]
[Date "2022.02.08"]
[WhiteClock "0:00:03"]
[BlackClock "0:00:09"]

1. e4 {[%clk 0:03:00]}  e6 {[%clk 0:02:53]} 2. Nf3 {[%clk 0:02:59]}  d5 {[%clk 0:02:54]} 3. Nc3 {[%clk 0:02:59]}  dxe4 {[%clk 0:02:52]} 4. Nxe4 {[%clk 0:03:00]}  Bd7 {[%clk 0:02:52]} 5. Bc4 {[%clk 0:02:50]}  Bc6 {[%clk 0:02:47]} 6. Neg5 {[%clk 0:02:50]}  Nd7 {[%clk 0:02:40]} 7. Qe2 {[%clk 0:02:48]}  Qe7 {[%clk 0:02:37]} 8. d4 {[%clk 0:02:37]}  h6 {[%clk 0:02:24]} 9. Ne4 {[%clk 0:02:25]}  Bxe4 {[%clk 0:02:22]} 10. Qxe4 {[%clk 0:02:25]}  Qb4+ {[%clk 0:02:23]} 11. Nd2 {[%clk 0:02:23]}  Ngf6 {[%clk 0:02:23]} 12. Qf3 {[%clk 0:02:21]}  Be7 {[%clk 0:02:01]} 13. c3 {[%clk 0:02:20]}  Qb6 {[%clk 0:02:01]} 14. Bd3 {[%clk 0:02:18]}  c5 {[%clk 0:01:48]} 15. Nc4 {[%clk 0:02:17]}  Qd8 {[%clk 0:01:45]} 16. Be3 {[%clk 0:01:52]}  O-O {[%clk 0:01:38]} 17. O-O {[%clk 0:01:50]}  b5 {[%clk 0:01:35]} 18. Ne5 {[%clk 0:01:48]}  Nxe5 {[%clk 0:01:29]} 19. dxe5 {[%clk 0:01:48]}  Qxd3 {[%clk 0:01:30]} 20. exf6 {[%clk 0:01:47]}  Bxf6 {[%clk 0:01:26]} 21. Bxc5 {[%clk 0:01:33]}  Qxf3 {[%clk 0:01:24]} 22. gxf3 {[%clk 0:01:34]}  Rfc8 {[%clk 0:01:24]} 23. Be3 {[%clk 0:01:30]}  a5 {[%clk 0:01:18]} 24. a3 {[%clk 0:01:19]}  Rab8 {[%clk 0:01:05]} 25. Bd2 {[%clk 0:00:42]}  Rb7 {[%clk 0:00:50]} 26. Rfd1 {[%clk 0:00:39]}  Kf8 {[%clk 0:00:50]} 27. Be1 {[%clk 0:00:38]}  Ke7 {[%clk 0:00:46]} 28. Rd3 {[%clk 0:00:36]}  Rd8 {[%clk 0:00:40]} 29. Rxd8 {[%clk 0:00:35]}  Kxd8 {[%clk 0:00:41]} 30. Kf1 {[%clk 0:00:33]}  a4 {[%clk 0:00:35]} 31. Ke2 {[%clk 0:00:31]}  Rd7 {[%clk 0:00:34]} 32. Rb1 {[%clk 0:00:31]}  Kc7 {[%clk 0:00:27]} 33. b3 {[%clk 0:00:31]}  axb3 {[%clk 0:00:24]} 34. Rxb3 {[%clk 0:00:32]}  Kc6 {[%clk 0:00:24]} 35. Rb4 {[%clk 0:00:31]}  Be7 {[%clk 0:00:21]} 36. Rg4 {[%clk 0:00:22]}  g6 {[%clk 0:00:21]} 37. a4 {[%clk 0:00:16]}  h5 {[%clk 0:00:21]} 38. axb5+ {[%clk 0:00:16]}  Kxb5 {[%clk 0:00:22]} 39. Re4 {[%clk 0:00:16]}  Bc5 {[%clk 0:00:18]} 40. c4+ {[%clk 0:00:12]}  Kc6 {[%clk 0:00:18]} 41. Bc3 {[%clk 0:00:12]}  Ra7 {[%clk 0:00:16]} 42. Bd4 {[%clk 0:00:12]}  Ra2+ {[%clk 0:00:10]} 43. Kf1 {[%clk 0:00:10]}  Rc2 {[%clk 0:00:10]} 44. Bxc5 {[%clk 0:00:03]}  Kxc5 {[%clk 0:00:11]} 45. Re5+ {[%clk 0:00:04]}  Kd6 {[%clk 0:00:07]} 46. Re4 {[%clk 0:00:03]}  Kc5 {[%clk 0:00:08]} 47. Re5+ {[%clk 0:00:04]}  Kd4 {[%clk 0:00:08]} 48. Ra5 {[%clk 0:00:04]}  Rxc4 {[%clk 0:00:06]} 49. Ra7 {[%clk 0:00:04]}  f5 {[%clk 0:00:06]} 50. Rg7 {[%clk 0:00:05]}  Ke5 {[%clk 0:00:06]} 51. Rxg6 {[%clk 0:00:04]}  Kf4 {[%clk 0:00:06]} 52. Rxe6 {[%clk 0:00:04]}  Kxf3 {[%clk 0:00:06]} 53. Re3+ {[%clk 0:00:05]}  Kf4 {[%clk 0:00:06]} 54. Kg2 {[%clk 0:00:05]}  h4 {[%clk 0:00:03]} 55. h3 {[%clk 0:00:05]}  Kg5 {[%clk 0:00:04]} 56. Re8 {[%clk 0:00:05]}  Rf4 {[%clk 0:00:03]} 57. Rg8+ {[%clk 0:00:05]}  Kf6 {[%clk 0:00:04]} 58. Ra8 {[%clk 0:00:04]}  Rb4 {[%clk 0:00:04]} 59. Ra3 {[%clk 0:00:05]}  Kg5 {[%clk 0:00:04]} 60. Kf3 {[%clk 0:00:05]}  Rf4+ {[%clk 0:00:04]} 61. Kg2 {[%clk 0:00:06]}  Rc4 {[%clk 0:00:05]} 62. Ra8 {[%clk 0:00:06]}  Rb4 {[%clk 0:00:05]} 63. Rg8+ {[%clk 0:00:06]}  Kf4 {[%clk 0:00:05]} 64. Rh8 {[%clk 0:00:06]}  Kg5 {[%clk 0:00:06]} 65. Rh7 {[%clk 0:00:06]}  Kg6 {[%clk 0:00:06]} 66. Rh8 {[%clk 0:00:06]}  Kg7 {[%clk 0:00:06]} 67. Rc8 {[%clk 0:00:07]}  Kg6 {[%clk 0:00:07]} 68. Rc5 {[%clk 0:00:07]}  Kg5 {[%clk 0:00:07]} 69. Kf3 {[%clk 0:00:07]}  Ra4 {[%clk 0:00:07]} 70. Rd5 {[%clk 0:00:06]}  Rf4+ {[%clk 0:00:08]} 71. Ke3 {[%clk 0:00:07]}  Re4+ {[%clk 0:00:08]} 72. Kf3 {[%clk 0:00:08]}  Ra4 {[%clk 0:00:09]} 73. Kg2 {[%clk 0:00:05]}  Ra3 {[%clk 0:00:09]} 74. Rd8 {[%clk 0:00:03]} 1/2-1/2


[Site "https://www.chess.com"]